[Event "Early-Titled-Tuesday-Blitz-April-16-2024"]
[Site "Chess.com"]
[Date "2024.04.16"]
[Round "4"]
[White "Aryan_Tamadon"]
[Black "Herzog2012"]
[Result "0-1"]
[WhiteElo "2648"]
[BlackElo "2535"]
[TimeControl "180+1"]
[EndTime "8:39:31 PDT"]
[Termination "Herzog2012 won on time"]

1. Nf3 {[%clk 0:03:00.9]} 1... Nf6 {[%clk 0:02:59]} 2. e3 {[%clk 0:03:01]} 2...
e6 {[%clk 0:02:56.1]} 3. d4 {[%clk 0:03:00.6]} 3... c5 {[%clk 0:02:54.7]} 4. Bd3
{[%clk 0:03:00.5]} 4... b6 {[%clk 0:02:54.4]} 5. O-O {[%clk 0:03:00.1]} 5... Bb7
{[%clk 0:02:54.2]} 6. Nbd2 {[%clk 0:03:00.3]} 6... Be7 {[%clk 0:02:52.6]} 7. b3
{[%clk 0:03:00.9]} 7... O-O {[%clk 0:02:51.7]} 8. Bb2 {[%clk 0:03:01.6]} 8... d6
{[%clk 0:02:45.6]} 9. c3 {[%clk 0:02:52.5]} 9... Nbd7 {[%clk 0:02:44.7]} 10. e4
{[%clk 0:02:52.1]} 10... Re8 {[%clk 0:02:37.3]} 11. Qe2 {[%clk 0:02:52.2]} 11...
Bf8 {[%clk 0:02:36.3]} 12. a4 {[%clk 0:02:51]} 12... a6 {[%clk 0:02:33.4]} 13.
e5 {[%clk 0:02:48.7]} 13... Nd5 {[%clk 0:02:27.2]} 14. g3 {[%clk 0:02:45.1]}
14... cxd4 {[%clk 0:02:23]} 15. cxd4 {[%clk 0:02:29.3]} 15... dxe5 {[%clk
0:02:22.5]} 16. dxe5 {[%clk 0:02:23.8]} 16... Nc5 {[%clk 0:02:21.2]} 17. Bc4
{[%clk 0:02:12.2]} 17... Rc8 {[%clk 0:02:05.3]} 18. Rfd1 {[%clk 0:02:11.1]}
18... Qc7 {[%clk 0:02:01.5]} 19. Rac1 {[%clk 0:02:09.8]} 19... Qb8 {[%clk
0:02:01.1]} 20. Bd4 {[%clk 0:01:55.6]} 20... Qa8 {[%clk 0:01:57.8]} 21. Bxc5
{[%clk 0:01:35.4]} 21... Bxc5 {[%clk 0:01:51.6]} 22. Bd3 {[%clk 0:01:34.8]}
22... g6 {[%clk 0:01:41.9]} 23. Ne4 {[%clk 0:01:23]} 23... Red8 {[%clk
0:01:37.2]} 24. Nxc5 {[%clk 0:01:05.1]} 24... Rxc5 {[%clk 0:01:33.9]} 25. Bc4
{[%clk 0:00:34.8]} 25... b5 {[%clk 0:01:26.2]} 26. axb5 {[%clk 0:00:33.3]} 26...
axb5 {[%clk 0:01:27.1]} 27. Ra1 {[%clk 0:00:28.7]} 27... Nc3 {[%clk 0:00:37.3]}
28. Rxd8+ {[%clk 0:00:21.8]} 28... Qxd8 {[%clk 0:00:38.2]} 29. Qe3 {[%clk
0:00:20.6]} 29... bxc4 {[%clk 0:00:37.4]} 30. Qxc3 {[%clk 0:00:06.2]} 30... Qd5
{[%clk 0:00:37.4]} 31. Kg2 {[%clk 0:00:01.8]} 31... cxb3 {[%clk 0:00:37.6]} 32.
Qe3 {[%clk 0:00:02.3]} 32... b2 {[%clk 0:00:31.1]} 33. Rb1 {[%clk 0:00:02.7]}
33... Rb5 {[%clk 0:00:31.6]} 34. g4 {[%clk 0:00:02.8]} 34... Rb3 {[%clk
0:00:31.5]} 0-1

[Event "Early-Titled-Tuesday-Blitz-April-16-2024"]
[Site "Chess.com"]
[Date "2024.04.16"]
[Round "4"]
[White "Koalaskakistis"]
[Black "vovachesss"]
[Result "1-0"]
[WhiteElo "2575"]
[BlackElo "2759"]
[TimeControl "180+1"]
[EndTime "8:39:32 PDT"]
[Termination "Koalaskakistis won on time"]

1. c4 {[%clk 0:03:00.9]} 1... c6 {[%clk 0:02:58.8]} 2. d4 {[%clk 0:02:59.2]}
2... d5 {[%clk 0:02:59.7]} 3. Nf3 {[%clk 0:02:53.3]} 3... Nf6 {[%clk 0:02:59.7]}
4. Nc3 {[%clk 0:02:52.1]} 4... dxc4 {[%clk 0:02:59.9]} 5. a4 {[%clk 0:02:49.6]}
5... Bf5 {[%clk 0:02:59.9]} 6. Ne5 {[%clk 0:02:48.8]} 6... Nbd7 {[%clk
0:02:59.7]} 7. Nxc4 {[%clk 0:02:48.4]} 7... Nb6 {[%clk 0:03:00.1]} 8. Nxb6
{[%clk 0:02:47.7]} 8... axb6 {[%clk 0:02:53]} 9. e3 {[%clk 0:02:45.6]} 9... e5
{[%clk 0:02:41.9]} 10. Bd3 {[%clk 0:02:18.7]} 10... Bxd3 {[%clk 0:02:22.6]} 11.
Qxd3 {[%clk 0:02:19.6]} 11... exd4 {[%clk 0:02:23.5]} 12. exd4 {[%clk
0:02:18.3]} 12... Bb4 {[%clk 0:02:20.9]} 13. O-O {[%clk 0:02:17]} 13... O-O
{[%clk 0:02:21.1]} 14. Bg5 {[%clk 0:02:17.7]} 14... Qd6 {[%clk 0:02:15.4]} 15.
Rfe1 {[%clk 0:02:16.3]} 15... h6 {[%clk 0:02:12.9]} 16. Bh4 {[%clk 0:02:11.8]}
16... Rfe8 {[%clk 0:02:11.5]} 17. Bg3 {[%clk 0:02:09.8]} 17... Qd7 {[%clk
0:02:08.4]} 18. Be5 {[%clk 0:01:59.7]} 18... Nd5 {[%clk 0:01:50.5]} 19. Nxd5
{[%clk 0:01:55.8]} 19... Qxd5 {[%clk 0:01:37.6]} 20. Qg3 {[%clk 0:01:55.5]}
20... f6 {[%clk 0:01:18.5]} 21. Bxf6 {[%clk 0:01:36.9]} 21... Rxe1+ {[%clk
0:01:18.9]} 22. Rxe1 {[%clk 0:01:36.9]} 22... Qf7 {[%clk 0:01:19.8]} 23. Re6
{[%clk 0:01:34.2]} 23... Kf8 {[%clk 0:00:17.4]} 24. Qe5 {[%clk 0:01:14.4]} 24...
Kg8 {[%clk 0:00:15]} 25. Qg3 {[%clk 0:00:50.3]} 25... Rxa4 {[%clk 0:00:10.3]}
26. h4 {[%clk 0:00:49.8]} 26... Bf8 {[%clk 0:00:09.4]} 27. d5 {[%clk 0:00:46.1]}
27... cxd5 {[%clk 0:00:08.7]} 28. Rxb6 {[%clk 0:00:46.8]} 28... h5 {[%clk
0:00:03]} 29. b3 {[%clk 0:00:37.6]} 29... Rg4 {[%clk 0:00:02.3]} 30. Qe5 {[%clk
0:00:33.3]} 30... gxf6 {[%clk 0:00:02.7]} 31. Rxf6 {[%clk 0:00:34.2]} 31... Qe7
{[%clk 0:00:01.5]} 32. Qxd5+ {[%clk 0:00:30]} 32... Kg7 {[%clk 0:00:01.8]} 33.
Re6 {[%clk 0:00:22.2]} 33... Qf7 {[%clk 0:00:01.6]} 34. Qe5+ {[%clk 0:00:22.7]}
1-0

[Event "Early-Titled-Tuesday-Blitz-April-16-2024"]
[Site "Chess.com"]
[Date "2024.04.16"]
[Round "4"]
[White "UmarovSabir"]
[Black "Manukyan_Artak"]
[Result "0-1"]
[WhiteElo "2305"]
[BlackElo "2509"]
[TimeControl "180+1"]
[EndTime "8:39:32 PDT"]
[Termination "Manukyan_Artak won on time"]

1. e4 {[%clk 0:03:00.2]} 1... c6 {[%clk 0:02:57.9]} 2. d4 {[%clk 0:02:59.5]}
2... d5 {[%clk 0:02:56.5]} 3. Bd3 {[%clk 0:02:57.4]} 3... dxe4 {[%clk
0:02:54.8]} 4. Bxe4 {[%clk 0:02:58.3]} 4... Nf6 {[%clk 0:02:55.5]} 5. Bf3 {[%clk
0:02:58.9]} 5... Bf5 {[%clk 0:02:54.8]} 6. Ne2 {[%clk 0:02:59]} 6... e6 {[%clk
0:02:55.1]} 7. O-O {[%clk 0:02:58.9]} 7... Be4 {[%clk 0:02:52.9]} 8. Bxe4 {[%clk
0:02:55.9]} 8... Nxe4 {[%clk 0:02:53.8]} 9. Re1 {[%clk 0:02:48.2]} 9... Be7
{[%clk 0:02:50.9]} 10. Nf4 {[%clk 0:02:46.7]} 10... Nf6 {[%clk 0:02:47.5]} 11.
c4 {[%clk 0:02:44.5]} 11... O-O {[%clk 0:02:45.3]} 12. Nc3 {[%clk 0:02:44.3]}
12... Nbd7 {[%clk 0:02:40.3]} 13. d5 {[%clk 0:02:43.5]} 13... exd5 {[%clk
0:02:32]} 14. cxd5 {[%clk 0:02:43.4]} 14... Bb4 {[%clk 0:02:26.7]} 15. dxc6
{[%clk 0:02:41.7]} 15... bxc6 {[%clk 0:02:25.1]} 16. Qc2 {[%clk 0:02:32.5]}
16... Nb6 {[%clk 0:02:16.1]} 17. Bd2 {[%clk 0:02:22.3]} 17... a5 {[%clk
0:02:10.1]} 18. Rad1 {[%clk 0:02:21.3]} 18... Re8 {[%clk 0:01:42.7]} 19. Nd3
{[%clk 0:01:24.4]} 19... Bd6 {[%clk 0:01:40.7]} 20. Bf4 {[%clk 0:01:18.8]} 20...
Bxf4 {[%clk 0:01:32.9]} 21. Rxe8+ {[%clk 0:01:13.5]} 21... Qxe8 {[%clk
0:01:33.8]} 22. Nxf4 {[%clk 0:01:14]} 22... Rd8 {[%clk 0:01:20.3]} 23. g3 {[%clk
0:01:09.2]} 23... h5 {[%clk 0:01:17]} 24. h3 {[%clk 0:01:07.6]} 24... h4 {[%clk
0:01:12.2]} 25. g4 {[%clk 0:00:53.9]} 25... Nbd5 {[%clk 0:01:08.5]} 26. Ng2
{[%clk 0:00:37.2]} 26... Nb4 {[%clk 0:01:02.6]} 27. Rxd8 {[%clk 0:00:16.1]}
27... Qxd8 {[%clk 0:00:57.7]} 28. Qd1 {[%clk 0:00:16.4]} 28... Qxd1+ {[%clk
0:00:52.5]} 29. Nxd1 {[%clk 0:00:17.3]} 29... Nxa2 {[%clk 0:00:53.2]} 30. Nxh4
{[%clk 0:00:17.6]} 30... Nb4 {[%clk 0:00:53.8]} 31. Nf3 {[%clk 0:00:17.3]} 31...
Nfd5 {[%clk 0:00:47.2]} 32. Kf1 {[%clk 0:00:17.2]} 32... a4 {[%clk 0:00:43.8]}
33. h4 {[%clk 0:00:14.6]} 33... Nd3 {[%clk 0:00:32.8]} 34. h5 {[%clk 0:00:12.1]}
34... Nxb2 {[%clk 0:00:28.9]} 0-1

[Event "Early-Titled-Tuesday-Blitz-April-16-2024"]
[Site "Chess.com"]
[Date "2024.04.16"]
[Round "4"]
[White "GreenPeach24"]
[Black "osielchesslover2011"]
[Result "1-0"]
[WhiteElo "2450"]
[BlackElo "2086"]
[TimeControl "180+1"]
[EndTime "8:39:32 PDT"]
[Termination "GreenPeach24 won by checkmate"]

1. e4 {[%clk 0:03:00.9]} 1... c5 {[%clk 0:02:59]} 2. Nf3 {[%clk 0:03:00.9]} 2...
d6 {[%clk 0:02:59.2]} 3. Bb5+ {[%clk 0:02:59.2]} 3... Nd7 {[%clk 0:02:58.1]} 4.
c3 {[%clk 0:02:58]} 4... a6 {[%clk 0:02:57.9]} 5. Ba4 {[%clk 0:02:57.7]} 5...
Nf6 {[%clk 0:02:56.2]} 6. Bc2 {[%clk 0:02:56.8]} 6... e6 {[%clk 0:02:54]} 7. d4
{[%clk 0:02:56.8]} 7... cxd4 {[%clk 0:02:54.5]} 8. cxd4 {[%clk 0:02:56.7]} 8...
Qc7 {[%clk 0:02:54.9]} 9. a4 {[%clk 0:02:50.5]} 9... Be7 {[%clk 0:02:54.9]} 10.
O-O {[%clk 0:02:50.1]} 10... b6 {[%clk 0:02:54.6]} 11. Nc3 {[%clk 0:02:50.1]}
11... Bb7 {[%clk 0:02:54.2]} 12. Bf4 {[%clk 0:02:41]} 12... Rc8 {[%clk
0:02:49.4]} 13. Rc1 {[%clk 0:02:40.4]} 13... Qb8 {[%clk 0:02:47.6]} 14. Qe2
{[%clk 0:02:36.8]} 14... Qa8 {[%clk 0:02:44.5]} 15. Rfe1 {[%clk 0:02:36]} 15...
O-O {[%clk 0:02:44]} 16. h3 {[%clk 0:02:34.9]} 16... Rfd8 {[%clk 0:02:21.2]} 17.
Bd3 {[%clk 0:02:33.3]} 17... Nf8 {[%clk 0:02:19.6]} 18. Bg3 {[%clk 0:02:20]}
18... Ng6 {[%clk 0:02:17.7]} 19. Nd2 {[%clk 0:02:18.1]} 19... h6 {[%clk
0:01:13.4]} 20. f4 {[%clk 0:02:12.7]} 20... Bf8 {[%clk 0:01:08.2]} 21. Kh2
{[%clk 0:02:06]} 21... Ne7 {[%clk 0:00:55.4]} 22. Nf3 {[%clk 0:02:02.8]} 22...
Nc6 {[%clk 0:00:44.3]} 23. Bh4 {[%clk 0:01:56.5]} 23... Be7 {[%clk 0:00:42.2]}
24. g4 {[%clk 0:01:53.5]} 24... Nb4 {[%clk 0:00:33.5]} 25. Bb1 {[%clk
0:01:48.1]} 25... Rd7 {[%clk 0:00:24.7]} 26. Rg1 {[%clk 0:01:19.4]} 26... Rdc7
{[%clk 0:00:16.5]} 27. Rce1 {[%clk 0:01:15.1]} 27... Bd8 {[%clk 0:00:10.2]} 28.
g5 {[%clk 0:01:14.5]} 28... Nh5 {[%clk 0:00:09.5]} 29. Rg4 {[%clk 0:01:10.9]}
29... hxg5 {[%clk 0:00:07.8]} 30. Bxg5 {[%clk 0:01:08.1]} 30... Bxg5 {[%clk
0:00:06.8]} 31. Nxg5 {[%clk 0:01:04.4]} 31... g6 {[%clk 0:00:06.1]} 32. Rh4
{[%clk 0:01:02.2]} 32... Nf6 {[%clk 0:00:04.5]} 33. Rg1 {[%clk 0:00:59.3]} 33...
d5 {[%clk 0:00:04.4]} 34. e5 {[%clk 0:00:57.9]} 34... Ne4 {[%clk 0:00:04.6]} 35.
Ngxe4 {[%clk 0:00:49.7]} 35... dxe4 {[%clk 0:00:04.2]} 36. Qg4 {[%clk
0:00:44.8]} 36... Rxc3 {[%clk 0:00:02.8]} 37. bxc3 {[%clk 0:00:39.9]} 37... Rxc3
{[%clk 0:00:03.2]} 38. Qg5 {[%clk 0:00:34]} 38... Kf8 {[%clk 0:00:01.8]} 39.
Rh8+ {[%clk 0:00:33]} 39... Kg7 {[%clk 0:00:02.4]} 40. Qh6# {[%clk 0:00:32]} 1-0

[Event "Early-Titled-Tuesday-Blitz-April-16-2024"]
[Site "Chess.com"]
[Date "2024.04.16"]
[Round "4"]
[White "dontcatchmeifyoucant"]
[Black "BallottiLuca"]
[Result "1-0"]
[WhiteElo "2125"]
[BlackElo "2366"]
[TimeControl "180+1"]
[EndTime "8:39:32 PDT"]
[Termination "dontcatchmeifyoucant won by resignation"]

1. e4 {[%clk 0:03:00.9]} 1... c6 {[%clk 0:02:58.9]} 2. d4 {[%clk 0:03:00.9]}
2... d5 {[%clk 0:02:58.7]} 3. e5 {[%clk 0:03:01.4]} 3... c5 {[%clk 0:02:59.6]}
4. dxc5 {[%clk 0:03:01.4]} 4... e6 {[%clk 0:02:57]} 5. Nf3 {[%clk 0:03:00.4]}
5... Bxc5 {[%clk 0:02:54.7]} 6. a3 {[%clk 0:03:01]} 6... Ne7 {[%clk 0:02:52.9]}
7. b4 {[%clk 0:03:00]} 7... Bb6 {[%clk 0:02:47.7]} 8. Bb2 {[%clk 0:02:59.6]}
8... a5 {[%clk 0:02:47.1]} 9. Nbd2 {[%clk 0:02:59]} 9... axb4 {[%clk 0:02:46.8]}
10. axb4 {[%clk 0:02:59.9]} 10... Rxa1 {[%clk 0:02:45.2]} 11. Qxa1 {[%clk
0:03:00.8]} 11... O-O {[%clk 0:02:43.7]} 12. Bd3 {[%clk 0:02:59.4]} 12... Na6
{[%clk 0:02:42.7]} 13. Qa3 {[%clk 0:02:57.5]} 13... Ng6 {[%clk 0:02:41.9]} 14.
g3 {[%clk 0:02:54.1]} 14... Qe7 {[%clk 0:02:19.6]} 15. c3 {[%clk 0:02:21.3]}
15... Bd7 {[%clk 0:02:18.5]} 16. O-O {[%clk 0:01:34.6]} 16... Nc7 {[%clk
0:02:12.6]} 17. Ra1 {[%clk 0:01:29.4]} 17... Bb5 {[%clk 0:02:09.4]} 18. Bc2
{[%clk 0:01:23.5]} 18... Rc8 {[%clk 0:02:01.4]} 19. h4 {[%clk 0:01:21.8]} 19...
Nf8 {[%clk 0:02:00.9]} 20. Qb3 {[%clk 0:01:19.4]} 20... Ne8 {[%clk 0:01:47.8]}
21. Nd4 {[%clk 0:01:05.1]} 21... Bd7 {[%clk 0:01:23.6]} 22. c4 {[%clk 0:01:00]}
22... dxc4 {[%clk 0:01:22.7]} 23. Nxc4 {[%clk 0:01:00.9]} 23... Bc7 {[%clk
0:01:22.1]} 24. Ra7 {[%clk 0:00:56.7]} 24... Bc6 {[%clk 0:01:06.2]} 25. Nxc6
{[%clk 0:00:56.8]} 25... bxc6 {[%clk 0:01:07.1]} 26. Be4 {[%clk 0:00:54.8]}
26... Rb8 {[%clk 0:01:03.3]} 27. Ba3 {[%clk 0:00:51.7]} 27... Qd7 {[%clk
0:00:59.5]} 28. Na5 {[%clk 0:00:42.8]} 28... c5 {[%clk 0:00:33]} 29. Bc6 {[%clk
0:00:34.9]} 29... Qc8 {[%clk 0:00:17]} 30. Bxe8 {[%clk 0:00:33.3]} 30... Bxa5
{[%clk 0:00:16]} 31. Bxf7+ {[%clk 0:00:33.5]} 31... Kh8 {[%clk 0:00:16.6]} 32.
Rxa5 {[%clk 0:00:34.2]} 32... Qc7 {[%clk 0:00:11.8]} 33. Bxe6 {[%clk 0:00:27.8]}
33... Qxa5 {[%clk 0:00:10.1]} 34. bxa5 {[%clk 0:00:27.4]} 34... Rxb3 {[%clk
0:00:09.9]} 35. Bxb3 {[%clk 0:00:28.3]} 35... Nd7 {[%clk 0:00:06.4]} 36. e6
{[%clk 0:00:28.2]} 36... Nf6 {[%clk 0:00:06.7]} 37. a6 {[%clk 0:00:28.1]} 1-0

[Event "Early-Titled-Tuesday-Blitz-April-16-2024"]
[Site "Chess.com"]
[Date "2024.04.16"]
[Round "4"]
[White "Makswolf200817"]
[Black "snowlord"]
[Result "1/2-1/2"]
[WhiteElo "2791"]
[BlackElo "2954"]
[TimeControl "180+1"]
[EndTime "8:39:33 PDT"]
[Termination "Game drawn by agreement"]

1. d4 {[%clk 0:03:00.9]} 1... e6 {[%clk 0:02:59.2]} 2. c4 {[%clk 0:03:00.9]}
2... c5 {[%clk 0:02:59.6]} 3. d5 {[%clk 0:03:00.8]} 3... g6 {[%clk 0:03:00]} 4.
Nf3 {[%clk 0:02:54.2]} 4... Bg7 {[%clk 0:03:00.5]} 5. d6 {[%clk 0:02:44.1]} 5...
Nf6 {[%clk 0:02:52.9]} 6. Nc3 {[%clk 0:02:43.3]} 6... O-O {[%clk 0:02:49]} 7. e4
{[%clk 0:02:42.4]} 7... Nc6 {[%clk 0:02:48.1]} 8. Bf4 {[%clk 0:02:37.5]} 8...
Ne8 {[%clk 0:02:09.4]} 9. Qd2 {[%clk 0:02:26.5]} 9... e5 {[%clk 0:02:02.5]} 10.
Bh6 {[%clk 0:02:16.4]} 10... Nd4 {[%clk 0:02:01.7]} 11. Bxg7 {[%clk 0:02:13.5]}
11... Kxg7 {[%clk 0:02:02.3]} 12. Nxe5 {[%clk 0:02:12.8]} 12... Nxd6 {[%clk
0:02:02.8]} 13. Nf3 {[%clk 0:02:03.9]} 13... Qf6 {[%clk 0:01:25.9]} 14. Be2
{[%clk 0:01:41]} 14... Re8 {[%clk 0:01:04.6]} 15. Nd5 {[%clk 0:01:36.2]} 15...
Nxf3+ {[%clk 0:01:04.7]} 16. Bxf3 {[%clk 0:01:35.4]} 16... Qe5 {[%clk
0:01:02.9]} 17. O-O {[%clk 0:01:31.4]} 17... Nxc4 {[%clk 0:01:02.4]} 18. Qc2
{[%clk 0:01:31.3]} 18... Nb6 {[%clk 0:01:00.3]} 19. Rad1 {[%clk 0:01:23.2]}
19... c4 {[%clk 0:00:39.1]} 20. a4 {[%clk 0:01:11.2]} 20... Nxd5 {[%clk
0:00:23.9]} 21. Rxd5 {[%clk 0:01:11]} 21... Qf6 {[%clk 0:00:24.6]} 22. Rfd1
{[%clk 0:01:02.2]} 22... d6 {[%clk 0:00:25.1]} 23. Rxd6 {[%clk 0:01:01.9]} 23...
Be6 {[%clk 0:00:25.8]} 24. Bg4 {[%clk 0:00:52.6]} 24... Rac8 {[%clk 0:00:21.6]}
25. h3 {[%clk 0:00:47.5]} 25... h5 {[%clk 0:00:21.5]} 26. Bxe6 {[%clk
0:00:46.7]} 26... Rxe6 {[%clk 0:00:22]} 27. Rd7 {[%clk 0:00:45.1]} 27... Rce8
{[%clk 0:00:14.4]} 28. Rxb7 {[%clk 0:00:39.9]} 28... Rxe4 {[%clk 0:00:14.5]} 29.
Rdd7 {[%clk 0:00:39]} 29... Rf4 {[%clk 0:00:07]} 30. Rxf7+ {[%clk 0:00:31.5]}
30... Qxf7 {[%clk 0:00:07.1]} 31. Rxf7+ {[%clk 0:00:32.4]} 31... Kxf7 {[%clk
0:00:07.6]} 32. g3 {[%clk 0:00:31.7]} 32... Rd4 {[%clk 0:00:04.8]} 33. Kg2
{[%clk 0:00:27.4]} 33... Red8 {[%clk 0:00:05.2]} 34. b3 {[%clk 0:00:26.3]} 34...
cxb3 {[%clk 0:00:04.9]} 35. Qxb3+ {[%clk 0:00:27.2]} 35... R4d5 {[%clk
0:00:05.6]} 36. h4 {[%clk 0:00:23.7]} 36... Rd7 {[%clk 0:00:06]} 1/2-1/2

[Event "Early-Titled-Tuesday-Blitz-April-16-2024"]
[Site "Chess.com"]
[Date "2024.04.16"]
[Round "4"]
[White "Orest_Vovk"]
[Black "the_chess_child"]
[Result "0-1"]
[WhiteElo "2576"]
[BlackElo "2820"]
[TimeControl "180+1"]
[EndTime "8:39:36 PDT"]
[Termination "the_chess_child won on time"]

1. g4 {[%clk 0:03:00.9]} 1... e5 {[%clk 0:02:54.9]} 2. g5 {[%clk 0:03:00.5]}
2... Nc6 {[%clk 0:02:53.1]} 3. Bg2 {[%clk 0:02:58.5]} 3... Qxg5 {[%clk
0:02:52.3]} 4. Bxc6 {[%clk 0:02:52.2]} 4... dxc6 {[%clk 0:02:51.6]} 5. Nf3
{[%clk 0:02:52.8]} 5... Qf6 {[%clk 0:02:50.2]} 6. Nc3 {[%clk 0:02:51.1]} 6...
Bf5 {[%clk 0:02:47.4]} 7. d4 {[%clk 0:02:50.5]} 7... e4 {[%clk 0:02:42.9]} 8.
Ne5 {[%clk 0:02:44.1]} 8... Bd6 {[%clk 0:02:37.7]} 9. Bf4 {[%clk 0:02:32.8]}
9... g5 {[%clk 0:02:30.1]} 10. Bg3 {[%clk 0:02:28.2]} 10... O-O-O {[%clk
0:02:23.3]} 11. Qd2 {[%clk 0:02:23.6]} 11... Ne7 {[%clk 0:02:19.9]} 12. O-O-O
{[%clk 0:02:17.2]} 12... Ng6 {[%clk 0:02:17.9]} 13. Qe3 {[%clk 0:02:11.1]} 13...
Qe6 {[%clk 0:01:44.4]} 14. d5 {[%clk 0:02:01.8]} 14... cxd5 {[%clk 0:01:43.4]}
15. Nxg6 {[%clk 0:01:59.5]} 15... hxg6 {[%clk 0:01:37.1]} 16. Qxa7 {[%clk
0:01:59.2]} 16... c6 {[%clk 0:01:24.7]} 17. Rd4 {[%clk 0:00:54.2]} 17... Bxg3
{[%clk 0:01:19.7]} 18. fxg3 {[%clk 0:00:46.5]} 18... Qe5 {[%clk 0:01:10.8]} 19.
Qa8+ {[%clk 0:00:35.2]} 19... Kc7 {[%clk 0:01:10.1]} 20. Qa5+ {[%clk 0:00:34.9]}
20... Kd6 {[%clk 0:01:00.3]} 21. e3 {[%clk 0:00:28.7]} 21... Ke6 {[%clk
0:00:58.4]} 22. Rb4 {[%clk 0:00:22.3]} 22... Rd7 {[%clk 0:00:56.2]} 23. Na4
{[%clk 0:00:21.5]} 23... Kf6 {[%clk 0:00:55.6]} 24. Nc5 {[%clk 0:00:19.9]} 24...
Re7 {[%clk 0:00:55.9]} 25. Rxb7 {[%clk 0:00:19]} 25... Rxb7 {[%clk 0:00:53.6]}
26. Nxb7 {[%clk 0:00:19.9]} 26... Rb8 {[%clk 0:00:53.8]} 27. Qa6 {[%clk
0:00:15.5]} 27... Bc8 {[%clk 0:00:44.4]} 28. Qxc6+ {[%clk 0:00:14]} 28... Kg7
{[%clk 0:00:44.4]} 29. Nd6 {[%clk 0:00:11.6]} 29... Qxb2+ {[%clk 0:00:42.1]} 30.
Kd2 {[%clk 0:00:11.9]} 30... Be6 {[%clk 0:00:35.4]} 31. Ne8+ {[%clk 0:00:09.8]}
31... Kf8 {[%clk 0:00:34.6]} 32. Nc7 {[%clk 0:00:06.9]} 32... Qb4+ {[%clk
0:00:34.1]} 33. Ke2 {[%clk 0:00:06.9]} 33... Bg4+ {[%clk 0:00:33.5]} 34. Kf1
{[%clk 0:00:03.1]} 34... Qb1+ {[%clk 0:00:29.9]} 35. Kf2 {[%clk 0:00:03.3]}
35... Qxh1 {[%clk 0:00:29.5]} 36. Ne6+ {[%clk 0:00:02.8]} 36... Kg8 {[%clk
0:00:27.2]} 0-1

[Event "Early-Titled-Tuesday-Blitz-April-16-2024"]
[Site "Chess.com"]
[Date "2024.04.16"]
[Round "4"]
[White "carloseduar100"]
[Black "Jojo_898"]
[Result "0-1"]
[WhiteElo "2231"]
[BlackElo "2471"]
[TimeControl "180+1"]
[EndTime "8:39:36 PDT"]
[Termination "Jojo_898 won by resignation"]

1. d4 {[%clk 0:02:59.2]} 1... d6 {[%clk 0:02:59.3]} 2. c3 {[%clk 0:02:43.3]}
2... g6 {[%clk 0:02:57.3]} 3. Bg5 {[%clk 0:02:43]} 3... Bg7 {[%clk 0:02:57.3]}
4. Nd2 {[%clk 0:02:43]} 4... Nf6 {[%clk 0:02:57.1]} 5. Ngf3 {[%clk 0:02:43]}
5... O-O {[%clk 0:02:56.7]} 6. e4 {[%clk 0:02:43.1]} 6... c6 {[%clk 0:02:55.9]}
7. Bd3 {[%clk 0:02:43.2]} 7... Nbd7 {[%clk 0:02:55.5]} 8. e5 {[%clk 0:02:39.8]}
8... dxe5 {[%clk 0:02:52.6]} 9. dxe5 {[%clk 0:02:40]} 9... Nd5 {[%clk
0:02:53.3]} 10. Qe2 {[%clk 0:02:34]} 10... h6 {[%clk 0:02:48.2]} 11. e6 {[%clk
0:02:21.1]} 11... hxg5 {[%clk 0:02:42.9]} 12. exf7+ {[%clk 0:02:21.1]} 12...
Rxf7 {[%clk 0:02:39.1]} 13. Bxg6 {[%clk 0:02:21.3]} 13... Rf6 {[%clk 0:02:36.6]}
14. Bc2 {[%clk 0:02:04.8]} 14... Nf4 {[%clk 0:02:35.9]} 15. Qc4+ {[%clk
0:02:04.7]} 15... e6 {[%clk 0:02:32.7]} 16. Nxg5 {[%clk 0:02:04.5]} 16... Nxg2+
{[%clk 0:02:26.3]} 17. Kd1 {[%clk 0:01:50.5]} 17... Nb6 {[%clk 0:02:23.1]} 18.
Qe4 {[%clk 0:01:50.1]} 18... Nf4 {[%clk 0:02:15.3]} 19. Rg1 {[%clk 0:01:39.4]}
19... Qd5 {[%clk 0:02:10.3]} 20. Qh7+ {[%clk 0:01:37.8]} 20... Kf8 {[%clk
0:02:08]} 21. Nxe6+ {[%clk 0:01:37.4]} 21... Nxe6 {[%clk 0:02:06.9]} 22. Bb3
{[%clk 0:01:30.4]} 22... Qd7 {[%clk 0:02:00.8]} 23. Kc1 {[%clk 0:01:18.5]} 23...
Rh6 {[%clk 0:01:50.7]} 24. Qf5+ {[%clk 0:01:16.8]} 24... Qf7 {[%clk 0:01:50]}
25. Qd3 {[%clk 0:00:52.5]} 25... Nd5 {[%clk 0:01:44.9]} 26. Ne4 {[%clk
0:00:50.2]} 26... Qf4+ {[%clk 0:01:40.1]} 27. Kc2 {[%clk 0:00:41.6]} 27... Nec7
{[%clk 0:01:29.6]} 28. Rae1 {[%clk 0:00:38.5]} 28... Bf5 {[%clk 0:01:29.1]} 29.
Rg3 {[%clk 0:00:20.9]} 29... Kg8 {[%clk 0:00:49]} 30. Rf3 {[%clk 0:00:20.3]}
30... Bxe4 {[%clk 0:00:47.6]} 31. Rxe4 {[%clk 0:00:19]} 31... Qxh2 {[%clk
0:00:42.7]} 32. Re7 {[%clk 0:00:19]} 32... Rf8 {[%clk 0:00:36]} 33. Rxf8+ {[%clk
0:00:18.4]} 33... Kxf8 {[%clk 0:00:35.6]} 34. Rxc7 {[%clk 0:00:16.7]} 34... Qxc7
{[%clk 0:00:34.6]} 35. Qf5+ {[%clk 0:00:17]} 35... Qf7 {[%clk 0:00:34.1]} 36.
Qc8+ {[%clk 0:00:17.1]} 36... Qe8 {[%clk 0:00:34.1]} 37. Qxb7 {[%clk 0:00:17.2]}
37... Qe2+ {[%clk 0:00:32.4]} 38. Kc1 {[%clk 0:00:17.4]} 38... Rh1+ {[%clk
0:00:32.9]} 0-1